bitfinex-derivatives/quotes_SOLF0:USTF0_20251002
["timestamp","ask_amount","ask_price","bid_price","bid_amount"]
[1759402900573,3.995,225.17,225.11,7.68]
[1759402900869,7.88,225.15,225.12,7.68]
[1759402901070,11.16309142,225.14,225.12,7.68]
[1759402901267,7.88,225.14,225.12,7.68]
[1759402901569,1.36305527,225.18,225.1,7.68]
[1759402901570,3.9953,225.15,225.1,7.68]
[1759402901774,7.88,225.13,225.11,7.68]
[1759402901970,3.27429333,225.12,225.11,7.68]
[1759402904470,7.88,225.13,225.11,7.68]
[1759402911075,3.9952,225.16,225.09,3.9962]
[1759402911375,11.15347721,225.15,225.1,7.68]
[1759402911676,11.15347721,225.14,225.1,7.68]
[1759402911873,3.27347721,225.13,225.1,7.68]
[1759402912175,7.88,225.14,225.1,7.68]
[1759402912474,3.27367876,225.13,225.1,7.68]
[1759402912677,7.88,225.14,225.1,7.68]
[1759402912978,3.27367876,225.13,225.09,3.9962]
[1759402913179,67.09299406,225.21,225.04,17.32]
[1759402913180,11.8748,225.18,225.1,13.03915527]
[1759402913380,4.38392521,225.17,225.11,7.68]
[1759402913677,7.88,225.15,225.1,1.36305527]
[1759402913875,3.27410841,225.14,225.11,7.3]
[1759402914077,3.27410841,225.13,225.1,1.36305527]
[1759402914273,11.5552,225.16,225.1,8.66305527]
[1759402914579,7.56,225.12,225.1,7.3]
[1759402915371,3.9954,225.15,225.1,7.3]
[1759402915572,3.27350902,225.14,225.1,7.3]
[1759402915773,3.27350902,225.13,225.09,5.35935527]
[1759402915975,12.91795527,225.17,225.1,7.3]
[1759402916175,3.27351576,225.16,225.1,7.3]
[1759402916376,3.27351576,225.15,225.09,5.35935527]
[1759402916574,3.27351576,225.14,225.11,7.3]
[1759402916868,3.27351576,225.13,225.1,3.996]
[1759402917178,12.91795527,225.17,225.11,7.3]
[1759402917473,3.27495575,225.16,225.1,3.996]
[1759402917680,10.83495575,225.15,225.11,7.3]
[1759402917873,3.27495575,225.14,225.1,3.996]
[1759402918067,3.27495575,225.13,225.11,7.3]
[1759402918269,7.56,225.15,225.1,3.996]
[1759402918473,3.27522222,225.14,225.1,3.996]
[1759402918677,3.27522222,225.13,225.11,7.3]
[1759402918878,7.56,225.15,225.11,7.3]
[1759402919078,3.27520973,225.14,225.1,3.996]
[1759402919279,3.27520973,225.13,225.12,7.3]
[1759402919976,1.10978015,225.18,225.12,7.3]
[1759402920171,3.27544861,225.17,225.12,3.9957]
[1759402920377,3.27544861,225.16,225.13,7.3]
[1759402920673,3.27544861,225.15,225.13,7.3]
[1759402920978,3.27544861,225.14,225.13,7.3]
[1759402921178,10.83544861,225.14,225.11,8.66305527]
[1759402921474,3.27544861,225.13,225.12,7.3]
[1759402924184,3.995,225.17,225.12,7.3]
[1759402924377,7.56,225.15,225.12,7.3]
[1759402924577,3.26675494,225.14,225.12,7.3]
[1759402924777,3.26675494,225.13,225.12,7.3]
[1759402925583,7.56,225.18,225.12,7.3]
[1759402925785,3.26715943,225.17,225.11,1.36305527]
[1759402925981,3.26715943,225.16,225.12,7.3]
[1759402926186,3.26715943,225.15,225.11,1.36305527]
[1759402926486,3.26715943,225.14,225.12,7.3]
[1759402926681,8.66969322,225.18,225.12,11.2957]
[1759402926882,10.82756315,225.17,225.12,3.9957]
[1759402927083,3.26756315,225.16,225.12,3.9957]
[1759402927284,3.26756315,225.15,225.13,7.3]
[1759402927582,3.26756315,225.14,225.13,7.3]
[1759402928983,7.56,225.17,225.13,7.3]
[1759402929185,3.26846819,225.16,225.12,3.9957]
[1759402929388,3.26846819,225.15,225.12,3.9957]
[1759402929685,7.56,225.17,225.12,3.9957]
[1759402929988,3.26881433,225.16,225.13,8.66305527]
[1759402930285,7.56,225.2,225.13,8.66305527]
[1759402930489,3.26874231,225.19,225.13,8.66305527]
[1759402930690,3.26874231,225.18,225.13,8.66305527]
[1759402930879,3.26874231,225.17,225.13,1.36305527]
[1759402931077,3.26874231,225.16,225.14,7.3]
[1759402931284,7.56,225.2,225.15,1.36305527]
[1759402931485,3.25114612,225.19,225.16,7.3]
[1759402931685,3.25114612,225.18,225.15,5.35825527]
[1759402931982,3.25114612,225.17,225.16,7.3]
[1759402932591,7.56,225.23,225.16,7.3]
[1759402932790,7.56,225.21,225.18,7.3]
[1759402932992,7.56,225.19,225.07,7.3]
[1759402933286,7.56,225.17,225.11,5.35895527]
[1759402933491,7.56,225.15,225.11,12.65895527]
[1759402933686,3.25021911,225.14,225.11,5.35895527]
[1759402933884,7.56,225.15,225.12,7.3]
[1759402934084,3.24392198,225.14,225.12,7.3]
[1759402934284,7.56,225.15,225.12,7.3]
[1759402934485,3.24393424,225.14,225.11,5.35895527]
[1759402934684,7.56,225.18,225.12,11.2957]
[1759402934885,3.24389069,225.17,225.13,7.3]
[1759402935085,3.24389069,225.16,225.12,3.9957]
[1759402935291,3.24389069,225.15,225.14,7.3]
[1759402936292,3.24389069,225.15,225.13,1.36305527]
[1759402936485,3.24389069,225.14,225.13,1.36305527]
[1759402936793,8.92305527,225.22,225.13,1.36305527]
[1759402936990,4.35310563,225.21,225.14,7.3]
[1759402937193,3.24348456,225.2,225.14,7.3]
[1759402937391,1.10962107,225.21,225.13,1.36305527]
[1759402937392,3.24348456,225.19,225.13,1.36305527]
[1759402937592,3.24348456,225.18,225.13,1.36305527]
[1759402937796,3.24348456,225.17,225.15,11.2952]
[1759402937991,7.56,225.2,225.09,7.3]
[1759402938295,3.24306388,225.19,225.13,1.36305527]
[1759402938491,3.24306388,225.18,225.13,1.36305527]
[1759402938687,7.56,225.16,225.13,7.3]
[1759402939489,7.56,225.2,225.13,12.65855527]
[1759402939695,3.24266897,225.19,225.13,12.65855527]
[1759402939898,10.80266897,225.18,225.14,7.3]
[1759402940099,3.24266897,225.17,225.14,7.3]
[1759402940297,3.24266897,225.16,225.14,7.3]
[1759402940495,7.56,225.18,225.14,3.9954]
[1759402940795,3.24246279,225.17,225.15,7.3]
[1759402940991,11.5543,225.21,225.14,11.2954]
[1759402941191,3.24242812,225.2,225.14,11.2954]
[1759402941391,10.80242812,225.19,225.14,3.9954]
[1759402941690,3.24162358,225.18,225.14,3.9954]
[1759402941893,7.56,225.19,225.15,7.3]
[1759402942096,3.24162465,225.18,225.15,7.3]
[1759402942391,7.56,225.21,225.15,7.3]
[1759402942594,3.9941,225.22,225.15,7.3]
[1759402942595,3.24130343,225.2,225.15,7.3]
[1759402942794,10.86130343,225.19,225.15,7.3]
[1759402942998,3.24130343,225.18,225.15,7.3]
[1759402943296,7.62,225.19,225.15,7.3]
[1759402943597,7.62,225.22,225.16,7.54]
[1759402943893,3.24060388,225.21,225.16,7.38]
[1759402944095,3.24060388,225.2,225.16,7.38]
[1759402944290,8.62305527,225.23,225.16,7.38]
[1759402944496,3.2400557,225.22,225.16,7.38]
[1759402944691,3.2400557,225.21,225.16,7.38]
[1759402944892,10.5000557,225.2,225.16,7.38]
[1759402945098,3.2400557,225.19,225.16,7.38]
[1759402945298,7.26,225.2,225.16,7.38]
[1759402946692,7.26,225.2,225.15,1.36305527]
[1759402947093,7.26,225.2,225.16,7.38]
[1759402947293,7.26,225.2,225.11,107.54]
[1759402947294,7.26,225.24,225.17,8.74305527]
[1759402947599,3.23859344,225.23,225.17,8.74305527]
[1759402947796,3.23859344,225.22,225.18,7.38]
[1759402948099,7.26,225.2,225.12,7.38]
[1759402948299,7.26,225.2,225.14,1.36305527]
[1759402948796,7.26,225.23,225.16,8.74305527]
[1759402949001,3.23820811,225.22,225.16,8.74305527]
[1759402949200,3.23820811,225.21,225.16,1.36305527]
[1759402949396,7.26,225.23,225.17,7.38]
[1759402949701,3.23787431,225.22,225.16,1.36305527]
[1759402949894,3.23787431,225.21,225.16,1.36305527]
[1759402950090,7.26,225.24,225.17,7.38]
[1759402950299,3.23769677,225.23,225.17,7.38]
[1759402950500,3.23769677,225.22,225.16,1.36305527]
[1759402950801,7.26,225.24,225.17,11.3748]
[1759402951003,3.23719162,225.23,225.17,11.3748]
[1759402951301,10.49719162,225.22,225.17,3.9948]
[1759402951502,7.26,225.22,225.18,7.38]
[1759402952003,7.26,225.22,225.17,3.9948]
[1759402952304,7.26,225.22,225.18,7.38]
[1759402952903,7.26,225.22,225.17,3.9948]
[1759402953096,7.26,225.22,225.18,7.38]
[1759402953698,8.62305527,225.25,225.18,7.38]
[1759402953898,3.23598739,225.24,225.18,7.38]
[1759402954106,7.26,225.24,225.18,7.38]
[1759402954314,3.23618136,225.23,225.16,14.49516061]
[1759402954509,7.26,225.22,225.16,14.49516061]
[1759402954905,7.26,225.22,225.17,7.38]
[1759402955203,7.26,225.24,225.17,7.38]
[1759402955507,7.26,225.22,225.17,7.38]
[1759402955707,7.26,225.24,225.17,7.38]
[1759402956006,3.23552193,225.23,225.17,7.38]
[1759402956202,7.26,225.24,225.17,7.38]
[1759402957109,3.23548672,225.23,225.17,7.38]
[1759402957308,7.26,225.24,225.17,7.38]
[1759402960302,3.23504966,225.23,225.17,7.38]
[1759402960497,7.26,225.24,225.17,7.38]
[1759402960698,3.23505179,225.23,225.17,7.38]
[1759402961005,7.26,225.21,225.15,7.38]
[1759402961309,7.26,225.21,225.15,20.6618329]
[1759402962501,7.26,225.21,225.15,24.6570329]
[1759402962706,7.26,225.21,225.15,20.6618329]
[1759402963205,7.26,225.21,225.15,7.38]
[1759402963406,7.26,225.19,225.08,7.38]
[1759402963606,7.26,225.17,225.08,20.38223484]
[1759402963910,7.26,225.15,225.08,20.38223484]
[1759402966911,3.23747414,225.14,225.08,7.38]
[1759402967112,7.26,225.15,225.08,7.38]
[1759402967314,3.23754715,225.14,225.08,7.38]
[1759402967614,7.26,225.15,225.08,7.38]
[1759402967805,3.23737435,225.14,225.08,7.38]
[1759402968113,7.26,225.15,225.08,7.38]
[1759402968314,3.23737435,225.14,225.08,7.38]
[1759402968503,7.26,225.15,225.08,7.38]
[1759402968708,3.23720377,225.14,225.08,7.38]
[1759402968913,7.26,225.15,225.08,7.38]
[1759402969113,3.23720377,225.14,225.08,7.38]
[1759402969413,7.26,225.15,225.08,7.38]
[1759402969712,3.2369827,225.14,225.08,7.38]
[1759402969913,7.26,225.15,225.08,7.38]
[1759402970113,3.2369827,225.14,225.08,7.38]
[1759402970306,7.26,225.15,225.08,7.38]
[1759402970511,3.23676857,225.14,225.08,7.38]
[1759402970710,7.26,225.15,225.08,7.38]
[1759402970916,3.23676857,225.14,225.08,7.38]
[1759402971113,7.26,225.15,225.08,7.38]
[1759402971410,3.23676857,225.14,225.08,7.38]
[1759402971608,7.26,225.15,225.08,7.38]
[1759402971808,3.23645628,225.14,225.08,7.38]
[1759402972010,7.26,225.15,225.08,7.38]
[1759402972209,3.23645628,225.14,225.08,7.38]
[1759402972408,7.26,225.15,225.08,7.38]
[1759402972609,3.23615488,225.14,225.08,7.38]
[1759402972806,7.26,225.14,225.08,7.38]
[1759402974110,11.2556,225.14,225.08,7.38]
[1759402974416,7.67,225.12,225.08,7.38]
[1759402974608,3.9956,225.14,225.08,7.38]
[1759402974810,3.23548737,225.13,225.08,7.38]
[1759402975109,7.67,225.13,225.06,3.9968]
[1759402975313,7.67,225.13,225.07,7.88]
[1759402976611,7.67,225.13,225.07,11.8766]
[1759402977016,7.67,225.13,225.07,7.88]
[1759402977217,7.67,225.14,225.08,3.9964]
[1759402980318,7.67,225.14,225.09,3.9962]
[1759402980518,7.67,225.15,225.08,7.88]
[1759402980911,2.12817534,225.18,225.05,13.19314578]
[1759402981116,7.67,225.16,225.06,7.88]
[1759402981314,67.51199066,225.15,225.03,7.88]
[1759402981519,7.67,225.11,225.03,7.88]
[1759402981813,7.67,225.09,225.03,7.88]
[1759402983022,3.9963,225.09,225.0,7.88]
[1759402983219,7.67,225.08,225.0,7.88]
[1759402984823,7.67,225.08,225.01,3.9976]
[1759402986621,7.67,225.08,225.0,7.88]
[1759402989424,7.67,225.12,225.05,7.88]
[1759402989629,7.67,225.14,225.0,7.88]
[1759402989825,7.67,225.12,225.0,41.14]
[1759402990128,7.67,225.09,225.01,3.9976]
[1759402990325,7.67,225.09,225.0,7.88]
[1759402990830,7.67,225.07,225.0,7.88]
[1759402991227,11.6668,225.07,225.0,7.88]
[1759402991527,7.67,225.06,224.98,3.9981]
[1759402992124,7.67,225.06,224.98,17.01280766]
[1759402992324,7.67,225.06,224.98,24.89280766]
[1759402993726,7.67,225.06,224.99,3.998]
[1759402994026,7.67,225.06,225.0,7.88]
[1759403000725,7.67,225.11,225.0,7.88]
[1759403000930,10.90025343,225.11,225.0,7.88]
[1759403002331,3.23025343,225.1,225.0,7.88]
[1759403002525,7.88,225.09,225.0,7.88]
[1759403002727,11.8764,225.09,225.02,3.9976]
[1759403003333,7.88,225.07,225.0,7.88]
[1759403003929,7.88,225.07,225.01,3.9978]
[1759403005430,7.88,225.07,225.02,3.9975]
[1759403005631,7.8,225.11,225.04,7.28]
[1759403006834,7.8,225.11,225.03,2.12817534]
[1759403006835,7.8,225.11,225.07,7.28]
[1759403007034,7.8,225.11,225.04,7.28]
[1759403007535,7.8,225.11,225.08,3.9964]
[1759403007731,3.23845643,225.15,225.09,7.28]
[1759403007932,7.8,225.13,225.09,7.28]
[1759403008129,7.8,225.15,225.09,11.2762]
[1759403008330,3.23851805,225.14,225.09,3.9962]
[1759403008530,7.8,225.14,225.1,7.28]
[1759403008733,7.8,225.14,225.11,7.28]
[1759403009325,7.8,225.14,225.1,3.996]
[1759403009528,7.8,225.14,225.11,7.28]
[1759403016632,7.8,225.2,225.11,11.2759]
[1759403016829,7.8,225.18,225.11,11.2759]
[1759403017038,3.238921,225.17,225.11,11.2759]
[1759403017232,3.238921,225.16,225.12,7.28]
[1759403017539,7.8,225.19,225.12,7.28]
[1759403017740,3.23875991,225.18,225.12,7.28]
[1759403017946,7.8,225.16,225.12,7.28]
[1759403018132,7.8,225.19,225.12,7.28]
[1759403018332,3.23858846,225.18,225.12,7.28]
[1759403018538,3.23858846,225.17,225.12,7.28]
[1759403018841,7.8,225.15,225.12,7.28]
[1759403020142,11.03833727,225.17,225.1,1.36274773]
[1759403020337,3.23833727,225.16,225.1,1.36274773]
[1759403020546,7.8,225.17,225.1,1.36274773]
[1759403020850,59.50552878,226.1,225.06,107.62]
[1759403020851,9.16274773,225.15,225.06,8.64274773]
[1759403021148,7.8,225.13,225.06,8.64274773]
[1759403022543,7.8,225.13,225.07,1.36274773]
[1759403023645,7.8,225.13,225.07,5.35934773]
[1759403028750,7.8,225.13,225.1,7.28]
[1759403029049,11.03729183,225.16,225.1,7.28]
[1759403029240,7.8,225.16,225.1,7.28]
[1759403032952,1.36274773,225.13,225.04,1.36274773]
[1759403033154,7.8,225.08,225.01,7.28]
[1759403033346,1.36274773,225.07,225.01,7.28]
[1759403033550,7.8,225.06,225.01,7.28]
[1759403033750,1.36274773,225.07,225.01,7.28]
[1759403034357,7.49,225.06,225.01,7.28]
[1759403034558,1.36274773,225.07,225.01,7.28]
[1759403034757,7.49,225.06,225.01,7.28]
[1759403034946,1.36274773,225.07,225.01,7.28]
[1759403035151,7.49,225.06,224.99,3.9981]
[1759403035354,11.4869,225.06,224.98,20.88470766]
[1759403036854,7.49,225.04,224.98,7.87]
[1759403037157,1.36274773,225.03,224.96,323.22]
[1759403037853,1.36274773,225.03,224.97,7.87]
[1759403038056,7.49,225.04,224.97,7.87]
[1759403042259,3.23798544,225.06,224.97,9.23274773]
[1759403042459,3.23798544,225.05,224.97,9.23274773]
[1759403042660,8.85274773,225.07,224.97,9.23274773]
[1759403042855,3.23806589,225.06,224.97,9.23274773]
[1759403043062,3.23806589,225.05,224.97,9.23274773]
[1759403043261,8.85274773,225.07,224.97,9.23274773]
[1759403043560,8.85274773,225.05,224.97,7.87]
[1759403043757,3.2379093,225.04,224.97,115.51]
[1759403043957,7.49,225.04,224.97,7.87]
[1759403046566,7.49,225.04,224.97,115.55]
[1759403048369,7.49,225.03,224.97,115.55]
[1759403049868,7.49,225.0,224.95,107.64]
[1759403050069,7.49,224.98,224.92,7.87]
[1759403051174,8.85274773,224.98,224.92,7.87]
[1759403053778,8.85274773,224.98,224.92,11.8693]
[1759403057078,8.85274773,224.98,224.92,7.87]
[1759403065295,62.1835,225.03,224.85,34.38]
[1759403065296,7.49,224.93,224.85,34.38]
[1759403065885,7.49,224.93,224.86,7.67]
[1759403066696,7.49,224.93,224.86,11.6703]
[1759403067294,1.36274773,224.92,224.86,11.6703]
[1759403067688,7.49,224.93,224.86,7.67]
[1759403068096,7.49,224.93,224.86,9.03274773]
[1759403068392,67.13169406,225.07,224.91,7.67]
[1759403068393,1.36274773,224.96,224.91,7.67]
[1759403068597,7.49,224.95,224.92,7.67]
[1759403069195,7.49,224.95,224.92,11.6693]
[1759403069397,12.08907122,224.99,224.93,7.67]
[1759403069594,8.85274773,224.99,224.93,7.67]
[1759403070299,8.85274773,224.99,224.93,11.6691]
[1759403071300,12.0887948,224.99,224.93,11.6691]
[1759403071503,8.85274773,224.99,224.93,11.6691]
[1759403071996,12.08988473,224.99,224.93,11.6691]
[1759403074202,8.85274773,224.99,224.93,11.6691]
[1759403074502,12.0929898,224.99,224.93,11.6691]
[1759403075198,3.24024207,224.98,224.93,11.6691]
[1759403075394,7.49,224.97,224.94,7.67]
[1759403076201,7.49,224.97,224.93,3.9991]
[1759403076402,7.49,224.97,224.94,7.67]
[1759403077895,1.36274773,224.99,224.94,7.67]
[1759403078100,3.24646136,224.98,224.94,7.67]
[1759403078300,10.73646136,224.97,224.94,7.67]
[1759403078504,7.49,224.97,224.94,7.67]
[1759403079306,1.36274773,224.99,224.91,1.36274773]
[1759403079496,3.24852566,224.98,224.94,7.67]
[1759403079700,7.49,225.01,224.91,62.2148]
[1759403079701,8.85274773,225.05,224.98,3.9982]
[1759403079901,3.24806023,225.04,224.98,3.9982]
[1759403080099,7.49,225.02,224.98,11.6682]
[1759403080302,3.24806023,225.01,224.98,11.6682]
[1759403080605,7.49,225.02,224.98,11.6682]
[1759403080907,3.22822929,225.01,224.98,11.6682]
[1759403081107,7.49,225.02,224.98,11.6682]
[1759403082407,7.49,225.02,224.99,7.67]
[1759403084712,7.49,225.06,225.0,7.67]
[1759403084903,7.49,225.06,224.93,62.209]
[1759403084904,7.49,225.04,224.94,7.67]
[1759403085208,3.22995706,225.03,224.94,107.7]
[1759403085411,3.22995706,225.02,224.95,7.67]
[1759403085707,7.49,225.04,224.95,7.67]
[1759403085905,3.22988829,225.03,225.02,7.67]
[1759403086102,7.49,225.08,225.02,7.67]
[1759403086306,3.22927233,225.07,224.99,7.67]
[1759403086604,3.22927233,225.06,224.99,7.67]
[1759403086806,8.60025283,225.11,224.99,7.67]
[1759403087008,3.22926446,225.1,225.03,11.6674]
[1759403087208,3.22926446,225.09,225.03,11.6674]
[1759403087404,3.22926446,225.08,225.04,7.67]
[1759403087608,7.49,225.12,225.05,7.67]
[1759403087804,3.22833559,225.11,225.05,7.67]
[1759403088003,3.22833559,225.1,225.06,7.67]
[1759403088202,7.49,225.12,225.06,7.67]
[1759403088404,3.22711137,225.11,225.06,7.67]
[1759403088605,7.49,225.13,225.06,7.67]
[1759403088807,3.22677705,225.12,225.06,7.67]
[1759403089010,3.22677705,225.11,225.06,7.67]
[1759403089207,7.49,225.13,225.06,7.67]
[1759403089612,7.49,225.13,225.07,3.9965]
[1759403089807,3.2246692,225.15,225.05,7.67]
[1759403090012,7.49,225.16,225.05,7.67]
[1759403091209,7.49,225.16,225.07,2.13227087]
[1759403091406,7.49,225.16,225.08,7.67]
[1759403091607,3.21990528,225.17,225.12,7.67]
[1759403091807,107.74,225.23,225.12,7.67]
[1759403091808,10.70990528,225.19,225.12,7.67]
[1759403092007,3.21990528,225.18,225.12,7.67]
[1759403092203,3.21760571,225.18,225.12,7.67]
[1759403092404,7.49,225.25,225.13,3.9956]
[1759403092608,7.49,225.23,225.14,7.67]
[1759403092809,3.21729613,225.22,225.14,7.67]
[1759403093409,7.49,225.23,225.14,7.67]
[1759403094117,10.70403362,225.23,225.14,7.67]
[1759403094417,7.49,225.23,225.14,7.67]
[1759403094616,7.49,225.23,225.15,3.9951]
[1759403095710,7.49,225.23,225.16,7.87]
[1759403098208,3.2062844,225.28,225.17,3.9949]
[1759403098419,7.87,225.27,225.18,7.87]
[1759403098616,7.87,225.27,225.2,7.87]
[1759403099618,7.87,225.27,225.21,3.9942]
[1759403099815,7.87,225.27,225.22,7.87]
[1759403100014,11.0762844,225.31,225.22,7.87]
[1759403100216,7.87,225.31,225.24,7.87]
[1759403101016,3.19927832,225.34,225.25,2.13227087]
[1759403101222,7.87,225.35,225.26,7.87]
[1759403101520,7.87,225.35,225.29,7.87]
[1759403105725,7.87,225.35,225.27,2.13227087]
[1759403107725,7.87,225.35,225.28,7.87]
[1759403107925,7.87,225.44,225.3,2.13227087]
[1759403108126,7.87,225.44,225.31,7.87]
[1759403108127,11.0522805,225.44,225.31,7.87]
[1759403108327,7.87,225.44,225.31,7.87]
[1759403108829,3.9906,225.42,225.32,3.9922]
[1759403109030,7.87,225.41,225.33,7.87]
[1759403109428,7.87,225.41,225.33,10.00227087]
[1759403109925,7.87,225.47,225.37,7.87]
[1759403111831,11.8597,225.47,225.37,7.87]
[1759403112338,11.8597,225.47,225.37,11.8612]
[1759403112521,7.87,225.47,225.37,11.8612]
[1759403112923,7.87,225.47,225.39,3.991]
[1759403113129,7.87,225.47,225.4,7.87]
[1759403113834,7.87,225.47,225.4,11.8607]
[1759403114129,7.87,225.47,225.4,7.87]
[1759403124236,11.8597,225.47,225.4,7.87]
[1759403126131,7.87,225.47,225.4,7.87]
[1759403128540,7.87,225.47,225.35,7.69]
[1759403128744,7.78,225.45,225.35,7.69]
[1759403128942,3.16578723,225.44,225.35,7.69]
[1759403129245,7.78,225.41,225.35,7.69]
[1759403131344,11.7708,225.41,225.35,7.69]
[1759403131944,3.17510242,225.4,225.35,7.69]
[1759403132141,3.17816896,225.39,225.35,7.69]
[1759403132343,7.78,225.4,225.35,7.69]
[1759403132640,3.9908,225.41,225.35,7.69]
[1759403132841,3.17816896,225.4,225.35,7.69]
[1759403133045,7.78,225.4,225.35,7.69]
[1759403133241,7.78,225.38,225.35,7.69]
[1759403133538,11.7708,225.41,225.33,7.69]
[1759403133744,3.18080923,225.4,225.33,7.69]
[1759403133943,3.18080923,225.39,225.33,7.69]
[1759403134144,11.7708,225.41,225.33,7.69]
[1759403134344,3.18331188,225.4,225.33,7.69]
[1759403134541,3.18331188,225.39,225.33,7.69]
[1759403134739,7.78,225.41,225.33,11.682]
[1759403134938,3.18331188,225.4,225.33,7.69]
[1759403135145,3.18331188,225.39,225.33,7.69]
[1759403135340,7.78,225.41,225.33,7.69]
[1759403135542,3.18551792,225.4,225.33,7.69]
[1759403135735,3.18551792,225.39,225.33,7.69]
[1759403136044,7.78,225.41,225.33,7.69]
[1759403136346,3.18593741,225.4,225.34,3.9918]
[1759403136538,3.18593741,225.39,225.35,7.69]
[1759403136744,7.78,225.41,225.35,7.69]
[1759403136946,3.18792131,225.4,225.34,3.9918]
[1759403137147,3.18792131,225.39,225.33,7.69]
[1759403137444,3.18792131,225.38,225.32,11.6822]
[1759403137743,7.78,225.39,225.32,11.6822]
[1759403137934,3.19036923,225.38,225.32,11.6822]
[1759403138133,7.78,225.39,225.32,11.6822]
[1759403138445,3.19235999,225.38,225.32,11.6822]
[1759403138646,7.78,225.39,225.32,11.6822]
[1759403138946,3.1923607,225.38,225.32,11.6822]
[1759403139145,7.78,225.39,225.32,11.6822]
[1759403139344,3.19431491,225.38,225.32,11.6822]
[1759403139543,7.78,225.39,225.32,11.6822]
[1759403139743,3.19431421,225.38,225.32,11.6822]
[1759403139946,7.78,225.39,225.32,11.6822]
[1759403140140,3.19431415,225.38,225.32,11.6822]
[1759403140340,7.78,225.39,225.32,11.6822]
[1759403140547,7.78,225.37,225.32,7.69]
[1759403140746,7.78,225.35,225.32,7.69]
[1759403141542,11.7713,225.38,225.32,7.69]
[1759403141846,3.19604136,225.37,225.32,7.69]
[1759403142036,7.78,225.35,225.32,7.69]
[1759403145052,7.78,225.37,225.29,13.04308205]
[1759403145254,3.20322613,225.36,225.29,13.04308205]
[1759403145450,7.78,225.37,225.29,13.04308205]
[1759403145651,3.20322471,225.36,225.29,13.04308205]
[1759403145846,7.78,225.37,225.29,13.04308205]
[1759403146047,3.203224,225.36,225.29,13.04308205]
[1759403146252,3.20469883,225.35,225.3,1.36038205]
[1759403146452,11.7715,225.37,225.3,1.36038205]
[1759403146753,7.78,225.34,225.29,7.69]
[1759403146947,7.78,225.36,225.31,7.69]
[1759403147147,7.78,225.36,225.25,7.69]
[1759403147346,7.78,225.36,225.32,1.36038205]
[1759403147549,7.78,225.36,225.33,7.69]
[1759403148550,7.78,225.38,225.32,1.36038205]
[1759403148847,7.78,225.36,225.32,9.05038205]
[1759403149148,7.78,225.36,225.33,7.69]
[1759403149650,7.78,225.38,225.32,1.36038205]
[1759403149851,7.78,225.36,225.32,1.36038205]
[1759403150047,7.78,225.38,225.32,1.36038205]
[1759403150244,7.78,225.36,225.32,9.05038205]
[1759403150552,7.78,225.38,225.32,9.05038205]
[1759403150744,3.20833559,225.37,225.32,9.05038205]
[1759403150946,7.78,225.37,225.32,7.69]
[1759403151344,3.9913,225.38,225.32,7.69]
[1759403151544,7.78,225.36,225.32,7.69]
[1759403151745,7.78,225.37,225.32,7.69]